Workbook

Sheet Документ
G2: Приложение № 3 к постановлению от .07.2018г.
A3: Ведомственная структура расходов бюджета МО Красноуфимский округ на 2018 год
A5: Наименование главного распорядителя бюджетных средств | B5: Код главного распоря- дителя | C5: Код раздела, подраз- дела | D5: Код целевой статьи | E5: Код вида расхо- дов | F5: Сумма, в рублях | G5: Исполнение за 1 полугодие 2018г.
G6: в рублях | H6: %
A7: Исполнительно-распорядительный орган местного самоуправления - Администрация Муниципального образования Красноуфимский округ | B7: 901 | C7: 0000 | D7: 0000000000 | E7: 000 | F7: 344755736.5 | G7: 122484522.8 | H7: =G7/F7*100 -> 35.52791437
A8: ОБЩЕГОСУДАРСТВЕННЫЕ ВОПРОСЫ | B8: 901 | C8: 0100 | D8: 0000000000 | E8: 000 | F8: 90309109.36 | G8: 34679660.22 | H8: =G8/F8*100 -> 38.40106548
A9: Функционирование высшего должностного лица субъекта Российской Федерации и муниципального образования | B9: 901 | C9: 0102 | D9: 0000000000 | E9: 000 | F9: 2166700 | G9: 873103.74 | H9: 40.29647575
A10: Непрограммные направления расходов | B10: 901 | C10: 0102 | D10: 7000000000 | E10: 000 | F10: 2166700 | G10: 873103.74 | H10: 40.29647575
A11: Функционирование высшего должностного лица субъекта РФ и муниципального образования | B11: 901 | C11: 0102 | D11: 7000521000 | E11: 000 | F11: 2166700 | G11: 873103.74 | H11: 40.29647575
A12: Расходы на выплаты персоналу государственных (муниципальных) органов | B12: 901 | C12: 0102 | D12: 7000521000 | E12: 120 | F12: 2166700 | G12: 873103.74 | H12: 40.29647575
A13: Функционирование Правительства Российской Федерации, высших исполнительных органов государственной власти субъектов Российской Федерации, местных администраций | B13: 901 | C13: 0104 | D13: 0000000000 | E13: 000 | F13: 32413815.66 | G13: 13411827.05 | H13: 41.37688445
A14: Муниципальная программа МО Красноуфимский округ "Совершенствование муниципального управления в МО Красноуфимский округ до 2020 года" | B14: 901 | C14: 0104 | D14: 0800000000 | E14: 000 | F14: 32413815.66 | G14: 13411827.05 | H14: 41.37688445
A15: Подпрограмма "Развитие и обеспечение эффективности деятельности администрации Муниципального образования Красноуфимский округ до 2020 года" | B15: 901 | C15: 0104 | D15: 0810000000 | E15: 000 | F15: 32373315.66 | G15: 13395827.05 | H15: 41.37922476
A16: Обеспечение деятельности органов местного самоуправления (центральный аппарат) | B16: 901 | C16: 0104 | D16: 0810121000 | E16: 000 | F16: 12344948.66 | G16: 5492243.02 | H16: 44.48980041
A17: Расходы на выплаты персоналу государственных (муниципальных) органов | B17: 901 | C17: 0104 | D17: 0810121000 | E17: 120 | F17: 11418713 | G17: 5048069.81 | H17: 44.20874585
A18: Иные закупки товаров, работ и услуг для обеспечения государственных (муниципальных) нужд | B18: 901 | C18: 0104 | D18: 0810121000 | E18: 240 | F18: 924235.66 | G18: 442873.21 | H18: 47.91777997
A19: Уплата налогов, сборов и иных платежей | B19: 901 | C19: 0104 | D19: 0810121000 | E19: 850 | F19: 2000 | G19: 1300 | H19: 65
A20: Обеспечение деятельности территориальных органов местного самоуправления | B20: 901 | C20: 0104 | D20: 0810221000 | E20: 000 | F20: 18320000 | G20: 7246984.99 | H20: 39.55777833
A21: Расходы на выплаты персоналу государственных (муниципальных) органов | B21: 901 | C21: 0104 | D21: 0810221000 | E21: 120 | F21: 17617089 | G21: 6865454.66 | H21: 38.97042616
A22: Иные закупки товаров, работ и услуг для обеспечения государственных (муниципальных) нужд | B22: 901 | C22: 0104 | D22: 0810221000 | E22: 240 | F22: 702711 | G22: 381530.33 | H22: 54.29405972
A23: Уплата налогов, сборов и иных платежей | B23: 901 | C23: 0104 | D23: 0810221000 | E23: 850 | F23: 200 | G23: 0 | H23: 0
A24: Обеспечение деятельности аппарата управления (прочий персонал) | B24: 901 | C24: 0104 | D24: 081П121000 | E24: 000 | F24: 1669367 | G24: 656599.04 | H24: 39.33221634
A25: Расходы на выплаты персоналу государственных (муниципальных) органов | B25: 901 | C25: 0104 | D25: 081П121000 | E25: 120 | F25: 1669367 | G25: 656599.04 | H25: 39.33221634
A26: Обеспечение оплаты труда работников аппарата управления (прочий персонал) в размере не ниже минимального размера оплаты труда в 2018 году | B26: 901 | C26: 0104 | D26: 081П140600 | E26: 000 | F26: 39000 | G26: 0 | H26: 0
A27: Расходы на выплаты персоналу государственных (муниципальных) органов | B27: 901 | C27: 0104 | D27: 081П140600 | E27: 120 | F27: 39000 | G27: 0 | H27: 0
A28: Подпрограмма "Развитие муниципальной службы в Муниципальном образовании Красноуфимский округ до 2020 года" | B28: 901 | C28: 0104 | D28: 0830000000 | E28: 000 | F28: 40500 | G28: 16000 | H28: 39.50617284
A29: Обеспечение повышения квалификации муниципальных служащих | B29: 901 | C29: 0104 | D29: 0830121000 | E29: 000 | F29: 40500 | G29: 16000 | H29: 39.50617284
A30: Иные закупки товаров, работ и услуг для обеспечения государственных (муниципальных) нужд | B30: 901 | C30: 0104 | D30: 0830121000 | E30: 240 | F30: 40500 | G30: 16000 | H30: 39.50617284
A31: Судебная система | B31: 901 | C31: 0105 | D31: 0000000000 | E31: 000 | F31: 12800 | G31: 2341.65 | H31: 18.29414063
A32: Муниципальная программа МО Красноуфимский округ "Совершенствование муниципального управления в МО Красноуфимский округ до 2020 года" | B32: 901 | C32: 0105 | D32: 0800000000 | E32: 000 | F32: 12800 | G32: 2341.65 | H32: 18.29414063
A33: Подпрограмма "Содействие реализации муниципальных функций, связанных с общегосударственным управлением до 2020 года" | B33: 901 | C33: 0105 | D33: 0820000000 | E33: 000 | F33: 12800 | G33: 2341.65 | H33: 18.29414063
A34: Расходы на осуществление государственных полномочий по составлению списков кандидатов в присяжные заседатели федеральных судов общей юрисдикции | B34: 901 | C34: 0105 | D34: 0820251200 | E34: 000 | F34: 12800 | G34: 2341.65 | H34: 18.29414063
A35: Иные закупки товаров, работ и услуг для обеспечения государственных (муниципальных) нужд | B35: 901 | C35: 0105 | D35: 0820251200 | E35: 240 | F35: 12800 | G35: 2341.65 | H35: 18.29414063
A36: Резервные фонды | B36: 901 | C36: 0111 | D36: 0000000000 | E36: 000 | F36: 80000 | G36: 0 | H36: 0
A37: Непрограммные направления расходов | B37: 901 | C37: 0111 | D37: 7000000000 | E37: 000 | F37: 80000 | G37: 0 | H37: 0
A38: Резервные фонды местных администраций | B38: 901 | C38: 0111 | D38: 7000021000 | E38: 000 | F38: 80000 | G38: 0 | H38: 0
A39: Резервные средства | B39: 901 | C39: 0111 | D39: 7000021000 | E39: 870 | F39: 80000 | G39: 0 | H39: 0
A40: Другие общегосударственные вопросы | B40: 901 | C40: 0113 | D40: 0000000000 | E40: 000 | F40: 55635793.7 | G40: 20392387.78 | H40: 36.65336005
A41: Муниципальная программа МО Красноуфимский округ "Совершенствование муниципального управления в МО Красноуфимский округ до 2020 года" | B41: 901 | C41: 0113 | D41: 0800000000 | E41: 000 | F41: 50772450.09 | G41: 18571822.16 | H41: 36.57854235
A42: Подпрограмма "Содействие реализации муниципальных функций, связанных с общегосударственным управлением до 2020 года" | B42: 901 | C42: 0113 | D42: 0820000000 | E42: 000 | F42: 745636 | G42: 193870.24 | H42: 26.00065447
A43: Содержание и ремонт объектов недвижимости, находящихся в муниципальной собственности | B43: 901 | C43: 0113 | D43: 0820121000 | E43: 000 | F43: 174136 | G43: 75516 | H43: 43.36610465
A44: Иные закупки товаров, работ и услуг для обеспечения государственных (муниципальных) нужд | B44: 901 | C44: 0113 | D44: 0820121000 | E44: 240 | F44: 174136 | G44: 75516 | H44: 43.36610465
A45: Прочие выплаты по обязательствам Муниципального образования | B45: 901 | C45: 0113 | D45: 0820122000 | E45: 000 | F45: 465000 | G45: 75674.9 | H45: 16.27417204
A46: Уплата налогов, сборов и иных платежей | B46: 901 | C46: 0113 | D46: 0820122000 | E46: 850 | F46: 465000 | G46: 75674.9 | H46: 16.27417204
A47: Осуществление государственного полномочия по определению перечня должностных лиц, уполномоченных составлять протоколы об админстративных правонарушениях, предусмотренных законом Свердловской области. | B47: 901 | C47: 0113 | D47: 0820341100 | E47: 000 | F47: 100 | G47: 100 | H47: 100
A48: Иные закупки товаров, работ и услуг для обеспечения государственных (муниципальных) нужд | B48: 901 | C48: 0113 | D48: 0820341100 | E48: 240 | F48: 100 | G48: 100 | H48: 100
A49: Осуществление государственного полномочия по созданию административных комиссий | B49: 901 | C49: 0113 | D49: 0820441200 | E49: 000 | F49: 106400 | G49: 42579.34 | H49: 40.01817669
A50: Расходы на выплаты персоналу государственных (муниципальных) органов | B50: 901 | C50: 0113 | D50: 0820441200 | E50: 120 | F50: 96525 | G50: 42579.34 | H50: 44.11224035
A51: Иные закупки товаров, работ и услуг для обеспечения государственных (муниципальных) нужд | B51: 901 | C51: 0113 | D51: 0820441200 | E51: 240 | F51: 9875 | G51: 0 | H51: 0
A52: Подпрограмма "Обеспечение деятельности по комплектованию, учету, хранению и использованию архивных документов, хранящихся в архивном отделе администрации МО Красноуфимский округ до 2020 года" | B52: 901 | C52: 0113 | D52: 0840000000 | E52: 000 | F52: 254000 | G52: 0 | H52: 0
A53: Осуществление государственного полномочия по хранению, комплектованию, учету и использованию архивных документов, находящихся в государственной собственности Свердловской области | B53: 901 | C53: 0113 | D53: 0840146100 | E53: 000 | F53: 254000 | G53: 0 | H53: 0
A54: Иные закупки товаров, работ и услуг для обеспечения государственных (муниципальных) нужд | B54: 901 | C54: 0113 | D54: 0840146100 | E54: 240 | F54: 254000 | G54: 0 | H54: 0
A55: Подпрограмма "Техническое обеспечение реализации муниципальной программы "Совершенствование муниципального управления в МО Красноуфимский округ до 2020 года" | B55: 901 | C55: 0113 | D55: 0860000000 | E55: 000 | F55: 49772814.09 | G55: 18377951.92 | H55: 36.92367461
A56: Оказание услуг (выполнение работ) муниципальным учреждением (Центр технического обеспечения) | B56: 901 | C56: 0113 | D56: 0860120000 | E56: 000 | F56: 42035014.09 | G56: 18377951.92 | H56: 43.7205799
A57: Расходы на выплаты персоналу казенных учреждений | B57: 901 | C57: 0113 | D57: 0860120000 | E57: 110 | F57: 29485191 | G57: 13368265.72 | H57: 45.33891512
A58: Иные закупки товаров, работ и услуг для обеспечения государственных (муниципальных) нужд | B58: 901 | C58: 0113 | D58: 0860120000 | E58: 240 | F58: 12283062.09 | G58: 4865632.2 | H58: 39.61253443
A59: Уплата налогов, сборов и иных платежей | B59: 901 | C59: 0113 | D59: 0860120000 | E59: 850 | F59: 266761 | G59: 122707 | H59: 45.99885291
A60: Обеспечение оплаты труда работников МКУ "Центр технического обеспечения" в размере не ниже минимального размера оплаты труда в 2018 году | B60: 901 | C60: 0113 | D60: 0860140600 | E60: 000 | F60: 7737800 | G60: 0 | H60: 0
A61: Расходы на выплаты персоналу казенных учреждений | B61: 901 | C61: 0113 | D61: 0860140600 | E61: 110 | F61: 7737800 | G61: 0 | H61: 0
A62: Муниципальная программа МО Красноуфимский округ "Развитие и модернизация жилищно-коммунального хозяйства и дорожного хозяйства, повышение энергетической эффективности в МО Красноуфимский округ до 2020 года" | B62: 901 | C62: 0113 | D62: 0900000000 | E62: 000 | F62: 3635019 | G62: 1775575.62 | H62: 48.84639172
A63: Подпрограмма "Обеспечение реализации муниципальной программы "Развитие и модернизация жилищно-коммунального хозяйства и дорожного хозяйства, повышение энергетической эффективности в МО Красноуфимский округ до 2020 года" | B63: 901 | C63: 0113 | D63: 0980000000 | E63: 000 | F63: 3635019 | G63: 1775575.62 | H63: 48.84639172
A64: Содержание отдела ЖКХ | B64: 901 | C64: 0113 | D64: 098П123000 | E64: 000 | F64: 3635019 | G64: 1775575.62 | H64: 48.84639172
A65: Расходы на выплаты персоналу государственных (муниципальных) органов | B65: 901 | C65: 0113 | D65: 098П123000 | E65: 120 | F65: 2881100 | G65: 1341667.96 | H65: 46.5679067
A66: Иные закупки товаров, работ и услуг для обеспечения государственных (муниципальных) нужд | B66: 901 | C66: 0113 | D66: 098П123000 | E66: 240 | F66: 446400 | G66: 225007.66 | H66: 50.40494176
A67: Уплата налогов, сборов и иных платежей | B67: 901 | C67: 0113 | D67: 098П123000 | E67: 850 | F67: 307519 | G67: 208900 | H67: 67.930762
A68: Муниципальная программа МО Красноуфимский округ "Социальная поддержка и благополучие населения МО Красноуфимский округ до 2024г года" | B68: 901 | C68: 0113 | D68: 1200000000 | E68: 000 | F68: 45000 | G68: 44990 | H68: 99.97777778
A69: Подпрограмма "Организация общественных работ в МО Красноуфимский округ до 2024 года" | B69: 901 | C69: 0113 | D69: 1220000000 | E69: 000 | F69: 45000 | G69: 44990 | H69: 99.97777778
A70: Временное трудоустройство безработных граждан, испытывающих трудности в поиске работы | B70: 901 | C70: 0113 | D70: 1220129000 | E70: 000 | F70: 45000 | G70: 44990 | H70: 99.97777778
A71: Иные закупки товаров, работ и услуг для обеспечения государственных (муниципальных) нужд | B71: 901 | C71: 0113 | D71: 1220129000 | E71: 240 | F71: 45000 | G71: 44990 | H71: 99.97777778
A72: Непрограммные направления расходов | B72: 901 | C72: 0113 | D72: 7000000000 | E72: 000 | F72: 1183324.61 | G72: 0 | H72: =G72/F72*100 -> 0
A73: Исполнение судебных актов по искам к бюджету округа | B73: 901 | C73: 0113 | D73: 7000029300 | E73: 000 | F73: 1183324.61 | G73: 0 | H73: 0
A74: Исполнение судебных актов | B74: 901 | C74: 0113 | D74: 7000029300 | E74: 830 | F74: 1183324.61 | G74: 0 | H74: 0
A75: НАЦИОНАЛЬНАЯ ОБОРОНА | B75: 901 | C75: 0200 | D75: 0000000000 | E75: 000 | F75: 1346100 | G75: 574620.41 | H75: 42.68779511
A76: Мобилизационная и вневойсковая подготовка | B76: 901 | C76: 0203 | D76: 0000000000 | E76: 000 | F76: 1346100 | G76: 574620.41 | H76: 42.68779511
A77: Муниципальная программа МО Красноуфимский округ "Обеспечение безопасности на территории МО Красноуфимский округ до 2020 года" | B77: 901 | C77: 0203 | D77: 0700000000 | E77: 000 | F77: 1346100 | G77: 574620.41 | H77: 42.68779511
A78: Подпрограмма "Осуществление переданных полномочий Российской Федерации по осуществлению первичного воинского учета на территориях, где отсутствуют военные комиссариаты" | B78: 901 | C78: 0203 | D78: 0770000000 | E78: 000 | F78: 1346100 | G78: 574620.41 | H78: 42.68779511
A79: Осуществление первичного воинского учета на территориях. где отсутствуют военные комиссариаты | B79: 901 | C79: 0203 | D79: 0770151180 | E79: 000 | F79: 1346100 | G79: 574620.41 | H79: 42.68779511
A80: Расходы на выплаты персоналу государственных (муниципальных) органов | B80: 901 | C80: 0203 | D80: 0770151180 | E80: 120 | F80: 1145153 | G80: 517601.19 | H80: 45.19930437
A81: Иные закупки товаров, работ и услуг для обеспечения государственных (муниципальных) нужд | B81: 901 | C81: 0203 | D81: 0770151180 | E81: 240 | F81: 200947 | G81: 57019.22 | H81: 28.37525318
A82: НАЦИОНАЛЬНАЯ БЕЗОПАСНОСТЬ И ПРАВООХРАНИТЕЛЬНАЯ ДЕЯТЕЛЬНОСТЬ | B82: 901 | C82: 0300 | D82: 0000000000 | E82: 000 | F82: 6957270 | G82: 2099864.5 | H82: 30.1823057
A83: Защита населения и территории от последствий чрезвычайных ситуаций природного и техногенного характера, гражданская оборона | B83: 901 | C83: 0309 | D83: 0000000000 | E83: 000 | F83: 5285970 | G83: 1784854.6 | H83: 33.76588592
A84: Муниципальная программа МО Красноуфимский округ "Обеспечение безопасности на территории МО Красноуфимский округ до 2020 года" | B84: 901 | C84: 0309 | D84: 0700000000 | E84: 000 | F84: 322500 | G84: 79328.99 | H84: 24.59813643
A85: Подпрограмма «Защита населения и территории МО Красноуфимский округ от чрезвычайных ситуаций природного, техногенного и биолого-социального характера, гражданская оборона» | B85: 901 | C85: 0309 | D85: 0710000000 | E85: 000 | F85: 322500 | G85: 79328.99 | H85: 24.59813643
A86: Предупреждение и ликвидация последствий чрезвычайных ситуаций и стихийных бедствий природного, техногенного и биолого-социального характера | B86: 901 | C86: 0309 | D86: 0710122000 | E86: 000 | F86: 322500 | G86: 79328.99 | H86: 24.59813643
A87: Иные закупки товаров, работ и услуг для обеспечения государственных (муниципальных) нужд | B87: 901 | C87: 0309 | D87: 0710122000 | E87: 240 | F87: 322500 | G87: 79328.99 | H87: 24.59813643
A88: Муниципальная программа МО Красноуфимский округ "Развитие и модернизация жилищно-коммунального хозяйства и дорожного хозяйства, повышение энергетической эффективности в МО Красноуфимский округ до 2020 года" | B88: 901 | C88: 0309 | D88: 0900000000 | E88: 000 | F88: 4963470 | G88: 1705525.61 | H88: 34.36155774
A89: Подпрограмма "Обеспечение реализации муниципальной программы "Развитие и модернизация жилищно-коммунального хозяйства и дорожного хозяйства, повышение энергетической эффективности в МО Красноуфимский округ до 2020 года" | B89: 901 | C89: 0309 | D89: 0980000000 | E89: 000 | F89: 4963470 | G89: 1705525.61 | H89: 34.36155774
A90: Содержание отдела ЕДДС | B90: 901 | C90: 0309 | D90: 0980223000 | E90: 000 | F90: 4963470 | G90: 1705525.61 | H90: 34.36155774
A91: Расходы на выплаты персоналу казенных учреждений | B91: 901 | C91: 0309 | D91: 0980223000 | E91: 110 | F91: 4528528.33 | G91: 1599279.46 | H91: 35.31565541
A92: Иные закупки товаров, работ и услуг для обеспечения государственных (муниципальных) нужд | B92: 901 | C92: 0309 | D92: 0980223000 | E92: 240 | F92: 434941.67 | G92: 106246.15 | H92: 24.42767785
A93: Обеспечение пожарной безопасности | B93: 901 | C93: 0310 | D93: 0000000000 | E93: 000 | F93: 1287000 | G93: 289879.9 | H93: 22.52369075
A94: Муниципальная программа МО Красноуфимский округ "Обеспечение безопасности на территории МО Красноуфимский округ до 2020 года" | B94: 901 | C94: 0310 | D94: 0700000000 | E94: 000 | F94: 1287000 | G94: 289879.9 | H94: 22.52369075
A95: Подпрограмма "Обеспечение пожарной безопасности на территории МО Красноуфимский округ" | B95: 901 | C95: 0310 | D95: 0720000000 | E95: 000 | F95: 1287000 | G95: 289879.9 | H95: 22.52369075
A96: Обеспечение первичных мер пожарной безопасности | B96: 901 | C96: 0310 | D96: 0720122000 | E96: 000 | F96: 667000 | G96: 284879.9 | H96: 42.71062969
A97: Иные закупки товаров, работ и услуг для обеспечения государственных (муниципальных) нужд | B97: 901 | C97: 0310 | D97: 0720122000 | E97: 240 | F97: 662000 | G97: 284879.9 | H97: 43.03321752
A98: Субсидии некоммерческим организациям (за исключением государственных (муниципальных) учреждений) | B98: 901 | C98: 0310 | D98: 0720122000 | E98: 630 | F98: 0 | G98: 0
A99: Специальные расходы | B99: 901 | C99: 0310 | D99: 0720122000 | E99: 880 | F99: 5000 | G99: 0 | H99: 0
A100: Восстановление пожарного водоснабжения на территории Муниципального образования Красноуфимский округ | B100: 901 | C100: 0310 | D100: 0720222000 | E100: 000 | F100: 620000 | G100: 5000 | H100: 0.8064516129
A101: Иные закупки товаров, работ и услуг для обеспечения государственных (муниципальных) нужд | B101: 901 | C101: 0310 | D101: 0720222000 | E101: 240 | F101: 620000 | G101: 5000 | H101: 0.8064516129
A102: Другие вопросы в области национальной безопасности и правоохранительной деятельности | B102: 901 | C102: 0314 | D102: 0000000000 | E102: 000 | F102: 384300 | G102: 25130 | H102: 6.539162113
A103: Муниципальная программа МО Красноуфимский округ "Обеспечение безопасности на территории МО Красноуфимский округ до 2020 года" | B103: 901 | C103: 0314 | D103: 0700000000 | E103: 000 | F103: 384300 | G103: 25130 | H103: 6.539162113
A104: Подпрограмма "Комплексная профилактика правонарушений на территории МО Красноуфимский округ" | B104: 901 | C104: 0314 | D104: 0730000000 | E104: 000 | F104: 190000 | G104: 25130 | H104: 13.22631579
A105: Комплексная профилактика правонарушений на территории МО Красноуфимский округ | B105: 901 | C105: 0314 | D105: 0730122000 | E105: 000 | F105: 190000 | G105: 25130 | H105: 13.22631579
A106: Иные закупки товаров, работ и услуг для обеспечения государственных (муниципальных) нужд | B106: 901 | C106: 0314 | D106: 0730122000 | E106: 240 | F106: 105000 | G106: 0 | H106: 0
A107: Специальные расходы | B107: 901 | C107: 0314 | D107: 0730122000 | E107: 880 | F107: 85000 | G107: 25130 | H107: 29.56470588
A108: Подпрограмма "Мероприятия по профилактике экстемизма и терроризма, а также минимизации и ликвидации последствий проявления терроризма и эксремизма на территории МО Красноуфимский округ" | B108: 901 | C108: 0314 | D108: 0740000000 | E108: 000 | F108: 194300 | G108: 0 | H108: 0
A109: Мероприятия по профилактике терроризма и экстремизма, а также минимизации и ликвидации последствий проявления терроризма и экстремизма на территории МО Красноуфимский округ | B109: 901 | C109: 0314 | D109: 0740122000 | E109: 000 | F109: 194300 | G109: 0 | H109: 0
A110: Иные закупки товаров, работ и услуг для обеспечения государственных (муниципальных) нужд | B110: 901 | C110: 0314 | D110: 0740122000 | E110: 240 | F110: 194300 | G110: 0 | H110: 0
A111: НАЦИОНАЛЬНАЯ ЭКОНОМИКА | B111: 901 | C111: 0400 | D111: 0000000000 | E111: 000 | F111: 43102472.18 | G111: 6032450.06 | H111: 13.99560108
A112: Сельское хозяйство и рыболовство | B112: 901 | C112: 0405 | D112: 0000000000 | E112: 000 | F112: 665200 | G112: 269037.09 | H112: 40.44454149
A113: Муниципальная программа МО Красноуфимский округ "Создание условий для развития малого и среднего предпринимательства, хозяйствующих субъектов в сфере АПК, коллективного садоводства в МО Красноуфимский округ до 2024 года" | B113: 901 | C113: 0405 | D113: 0600000000 | E113: 000 | F113: 63000 | G113: 16000 | H113: 25.3968254
A114: Содействие в развитии хозяйствования в сфере АПК | B114: 901 | C114: 0405 | D114: 0600123000 | E114: 000 | F114: 63000 | G114: 16000 | H114: 25.3968254
A115: Иные закупки товаров, работ и услуг для обеспечения государственных (муниципальных) нужд | B115: 901 | C115: 0405 | D115: 0600123000 | E115: 240 | F115: 63000 | G115: 16000 | H115: 25.3968254
A116: Муниципальная программа МО Красноуфимский округ "Обеспечение безопасности на территории МО Красноуфимский округ до 2020 года" | B116: 901 | C116: 0405 | D116: 0700000000 | E116: 000 | F116: 602200 | G116: 253037.09 | H116: 42.01877948
A117: Подпрограмма «Защита населения и территории МО Красноуфимский округ от чрезвычайных ситуаций природного, техногенного и биолого-социального характера, гражданская оборона» | B117: 901 | C117: 0405 | D117: 0710000000 | E117: 000 | F117: 602200 | G117: 253037.09 | H117: 42.01877948
A118: Осуществление государственного полномочия Свердловской области по организации проведения мероприятий по отлову и содержанию безнадзорных собак | B118: 901 | C118: 0405 | D118: 0710142П00 | E118: 000 | F118: 602200 | G118: 253037.09 | H118: 42.01877948
A119: Иные закупки товаров, работ и услуг для обеспечения государственных (муниципальных) нужд | B119: 901 | C119: 0405 | D119: 0710142П00 | E119: 240 | F119: 602200 | G119: 253037.09 | H119: 42.01877948
A120: Водное хозяйство | B120: 901 | C120: 0406 | D120: 0000000000 | E120: 000 | F120: 9212945 | G120: 1458841.12 | H120: 15.83468826
A121: Муниципальная программа МО Красноуфимский округ "Обеспечение безопасности на территории МО Красноуфимский округ до 2020 года" | B121: 901 | C121: 0406 | D121: 0700000000 | E121: 000 | F121: 9212945 | G121: 1458841.12 | H121: 15.83468826
A122: Подпрограмма "Обеспечение безопасности на опасных объектах МО Красноуфимский округ" | B122: 901 | C122: 0406 | D122: 0750000000 | E122: 000 | F122: 241500 | G122: 215760 | H122: 89.34161491
A123: Страхование гидротехнических сооружений и газопроводов | B123: 901 | C123: 0406 | D123: 0750122000 | E123: 000 | F123: 241500 | G123: 215760 | H123: 89.34161491
A124: Иные закупки товаров, работ и услуг для обеспечения государственных (муниципальных) нужд | B124: 901 | C124: 0406 | D124: 0750122000 | E124: 240 | F124: 241500 | G124: 215760 | H124: 89.34161491
A125: Подпрограмма "Обеспечение рационального и безопасного природопользования в МО Красноуфимский округ" | B125: 901 | C125: 0406 | D125: 0760000000 | E125: 000 | F125: 8971445 | G125: 1243081.12 | H125: 13.85597437
A126: Осуществление водохозяйственных мероприятий | B126: 901 | C126: 0406 | D126: 0760222000 | E126: 000 | F126: 2189945 | G126: 1243081.12 | H126: 56.76312053
A127: Иные закупки товаров, работ и услуг для обеспечения государственных (муниципальных) нужд | B127: 901 | C127: 0406 | D127: 0760222000 | E127: 240 | F127: 2179445 | G127: 1236081.12 | H127: 56.71540782
A128: Уплата налогов, сборов и иных платежей | B128: 901 | C128: 0406 | D128: 0760222000 | E128: 850 | F128: 10500 | G128: 7000 | H128: 66.66666667
A129: Капитальный ремонт гидротехнических сооружений, находящихся в собственности МО Красноуфимский округ | B129: 901 | C129: 0406 | D129: 07602L0160 | E129: 000 | F129: 6781500 | G129: 0 | H129: 0
A130: Иные закупки товаров, работ и услуг для обеспечения государственных (муниципальных) нужд | B130: 901 | C130: 0406 | D130: 07602L0160 | E130: 240 | F130: 6781500 | G130: 0 | H130: 0
A131: Капитальный ремонт гидротехнических сооружений, находящихся в собственности МО Красноуфимский округ | B131: 901 | C131: 0406 | D131: 07602R0160 | E131: 000 | F131: 0 | G131: 0
A132: Иные закупки товаров, работ и услуг для обеспечения государственных (муниципальных) нужд | B132: 901 | C132: 0406 | D132: 07602R0160 | E132: 240 | F132: 0 | G132: 0
A133: Транспорт | B133: 901 | C133: 0408 | D133: 0000000000 | E133: 000 | F133: 1420200 | G133: 923561.94 | H133: 65.03041403
A134: Муниципальная программа МО Красноуфимский округ "Развитие и модернизация жилищно-коммунального хозяйства и дорожного хозяйства, повышение энергетической эффективности в МО Красноуфимский округ до 2020 года" | B134: 901 | C134: 0408 | D134: 0900000000 | E134: 000 | F134: 1420200 | G134: 923561.94 | H134: 65.03041403
A135: Подпрограмма "Развитие транспорта и транспортной инфраструктуры в МО Красноуфимский округ" | B135: 901 | C135: 0408 | D135: 0970000000 | E135: 000 | F135: 1420200 | G135: 923561.94 | H135: 65.03041403
A136: Проведение отдельных мероприятий в области автомобильного транспорта | B136: 901 | C136: 0408 | D136: 0970123000 | E136: 000 | F136: 1420200 | G136: 923561.94 | H136: =G136/F136*100 -> 65.03041403
A137: Субсидии юридическим лицам (кроме некоммерческих организаций), индивидуальным предпринимателям, физическим лицам - производителям товаров, работ, услуг | B137: 901 | C137: 0408 | D137: 0970123000 | E137: 810 | F137: 1420200 | G137: 923561.94 | H137: 65.03041403
A138: Дорожное хозяйство (дорожные фонды) | B138: 901 | C138: 0409 | D138: 0000000000 | E138: 000 | F138: 23417199 | G138: 2883009.91 | H138: 12.31150621
A139: Муниципальная программа МО Красноуфимский округ "Развитие и модернизация жилищно-коммунального хозяйства и дорожного хозяйства, повышение энергетической эффективности в МО Красноуфимский округ до 2020 года" | B139: 901 | C139: 0409 | D139: 0900000000 | E139: 000 | F139: 23417199 | G139: 2883009.91 | H139: 12.31150621
A140: Подпрограмма "Развитие и обеспечение сохранности сети автомобильных дорог местного значения на территории МО Красноуфимский округ" | B140: 901 | C140: 0409 | D140: 0950000000 | E140: 000 | F140: 23417199 | G140: 2883009.91 | H140: 12.31150621
A141: Разработка проектной документации на объекты строительства и реконструкции автомобильных дорог общего пользования местного значения | B141: 901 | C141: 0409 | D141: 0950124000 | E141: 000 | F141: 2000000 | G141: 0 | H141: 0
A142: Иные закупки товаров, работ и услуг для обеспечения государственных (муниципальных) нужд | B142: 901 | C142: 0409 | D142: 0950124000 | E142: 240 | F142: 2000000 | G142: 0 | H142: 0
A143: Содержание автомобильных дорог общего пользования местного значения и искусственных сооружений, расположенных на них | B143: 901 | C143: 0409 | D143: 0950224000 | E143: 000 | F143: 5770000 | G143: 2878109.91 | H143: 49.88058769
A144: Иные закупки товаров, работ и услуг для обеспечения государственных (муниципальных) нужд | B144: 901 | C144: 0409 | D144: 0950224000 | E144: 240 | F144: 5770000 | G144: 2878109.91 | H144: 49.88058769
A145: Ремонт атомобильных дорог общего пользования местного значения и искусственных сооружений, расположенных на них | B145: 901 | C145: 0409 | D145: 0950324000 | E145: 000 | F145: 14927363 | G145: 0 | H145: 0
A146: Иные закупки товаров, работ и услуг для обеспечения государственных (муниципальных) нужд | B146: 901 | C146: 0409 | D146: 0950324000 | E146: 240 | F146: 14927363 | G146: 0 | H146: 0
A147: Мероприятия по повышению безопасности дорожного движения на территории МО Красноуфимский округ | B147: 901 | C147: 0409 | D147: 0950624000 | E147: 000 | F147: 719836 | G147: 4900 | H147: 0.6807106063
A148: Иные закупки товаров, работ и услуг для обеспечения государственных (муниципальных) нужд | B148: 901 | C148: 0409 | D148: 0950624000 | E148: 240 | F148: 719836 | G148: 4900 | H148: 0.6807106063
A149: Связь и информатика | B149: 901 | C149: 0410 | D149: 0000000000 | E149: 000 | F149: 81000 | G149: 9000 | H149: 11.11111111
A150: Муниципальная программа МО Красноуфимский округ "Совершенствование муниципального управления в МО Красноуфимский округ до 2020 года" | B150: 901 | C150: 0410 | D150: 0800000000 | E150: 000 | F150: 81000 | G150: 9000 | H150: 11.11111111
A151: Подпрограмма "Информатизация Муниципального образования Красноуфимский округ до 2020 года" | B151: 901 | C151: 0410 | D151: 0850000000 | E151: 000 | F151: 81000 | G151: 9000 | H151: 11.11111111
A152: Мероприятия по обеспечению предоставления муниципальных услуг в электронном виде | B152: 901 | C152: 0410 | D152: 0850123000 | E152: 000 | F152: 81000 | G152: 9000 | H152: 11.11111111
A153: Иные закупки товаров, работ и услуг для обеспечения государственных (муниципальных) нужд | B153: 901 | C153: 0410 | D153: 0850123000 | E153: 240 | F153: 81000 | G153: 9000 | H153: 11.11111111
A154: Другие вопросы в области национальной экономики | B154: 901 | C154: 0412 | D154: 0000000000 | E154: 000 | F154: 8305928.18 | G154: 489000 | H154: 5.887361285
A155: Муниципальная программа МО Красноуфимский округ "Градостроительное планирование территорий МО Красноуфимский округ до 2020 года" | B155: 901 | C155: 0412 | D155: 0400000000 | E155: 000 | F155: 7743228.18 | G155: 0 | H155: 0
A156: Разработка документации по планировке территории МО Красноуфимский округ | B156: 901 | C156: 0412 | D156: 0400123000 | E156: 000 | F156: 4581000 | G156: 0 | H156: 0
A157: Иные закупки товаров, работ и услуг для обеспечения государственных (муниципальных) нужд | B157: 901 | C157: 0412 | D157: 0400123000 | E157: 240 | F157: 4581000 | G157: 0 | H157: 0
A158: Разработка документации по планировке территории за счет средств областного бюджета | B158: 901 | C158: 0412 | D158: 0400143600 | E158: 000 | F158: 2079000 | G158: 0 | H158: 0
A159: Иные закупки товаров, работ и услуг для обеспечения государственных (муниципальных) нужд | B159: 901 | C159: 0412 | D159: 0400143600 | E159: 240 | F159: 2079000 | G159: 0 | H159: 0
A160: Проведение работ по описанию местоположения границ территориальных зон и населенных пунктов, внесение в Единый государственный реестр недвижимости сведений о границах территориальных зон и населенных пунктов | B160: 901 | C160: 0412 | D160: 0400143800 | E160: 000 | F160: 1083228.18 | G160: 0 | H160: 0
A161: Иные закупки товаров, работ и услуг для обеспечения государственных (муниципальных) нужд | B161: 901 | C161: 0412 | D161: 0400143800 | E161: 240 | F161: 1083228.18 | G161: 0 | H161: 0
A162: Муниципальная программа МО Красноуфимский округ "Создание условий для развития малого и среднего предпринимательства, хозяйствующих субъектов в сфере АПК, коллективного садоводства в МО Красноуфимский округ до 2024 года" | B162: 901 | C162: 0412 | D162: 0600000000 | E162: 000 | F162: 562700 | G162: 489000 | H162: 86.90243469
A163: Создание условий для развития и содействие развитию малого и среднего предпринимательства | B163: 901 | C163: 0412 | D163: 0600223000 | E163: 000 | F163: 191700 | G163: 163000 | H163: 85.02869066
A164: Иные закупки товаров, работ и услуг для обеспечения государственных (муниципальных) нужд | B164: 901 | C164: 0412 | D164: 0600223000 | E164: 240 | F164: 0 | G164: 0
A165: Субсидии некоммерческим организациям (за исключением государственных (муниципальных) учреждений) | B165: 901 | C165: 0412 | D165: 0600223000 | E165: 630 | F165: 163000 | G165: 163000 | H165: 100
A166: Субсидии юридическим лицам (кроме некоммерческих организаций), индивидуальным предпринимателям, физическим лицам - производителям товаров, работ, услуг | B166: 901 | C166: 0412 | D166: 0600223000 | E166: 810 | F166: 28700 | G166: 0 | H166: 0
A167: Развитие системы поддержки малого и среднего предпринимательства на территории Муниципального образования Красноуфимский округ за счет средств областного бюджета | B167: 901 | C167: 0412 | D167: 0600245270 | E167: 000 | F167: 326000 | G167: 326000 | H167: 100
A168: Субсидии некоммерческим организациям (за исключением государственных (муниципальных) учреждений) | B168: 901 | C168: 0412 | D168: 0600245270 | E168: 630 | F168: 326000 | G168: 326000 | H168: 100
A169: Инженерное обустройство земель для ведения коллективного садоводства | B169: 901 | C169: 0412 | D169: 0600323000 | E169: 000 | F169: 45000 | G169: 0 | H169: 0
A170: Субсидии некоммерческим организациям (за исключением государственных (муниципальных) учреждений) | B170: 901 | C170: 0412 | D170: 0600323000 | E170: 630 | F170: 45000 | G170: 0 | H170: 0
A171: ЖИЛИЩНО-КОММУНАЛЬНОЕ ХОЗЯЙСТВО | B171: 901 | C171: 0500 | D171: 0000000000 | E171: 000 | F171: 81004491.62 | G171: 15936957.37 | H171: 19.67416504
A172: Жилищное хозяйство | B172: 901 | C172: 0501 | D172: 0000000000 | E172: 000 | F172: 1423800 | G172: 1093 | H172: 0.07676639978
A173: Муниципальная программа МО Красноуфимский округ "Развитие и модернизация жилищно-коммунального хозяйства и дорожного хозяйства, повышение энергетической эффективности в МО Красноуфимский округ до 2020 года" | B173: 901 | C173: 0501 | D173: 0900000000 | E173: 000 | F173: 1423800 | G173: 1093 | H173: 0.07676639978
A174: Подпрограмма "Повышение качества условий проживания населения МО Красноуфимский округ" | B174: 901 | C174: 0501 | D174: 0920000000 | E174: 000 | F174: 1423800 | G174: 1093 | H174: 0.07676639978
A175: Формирование жилищного фонда для переселения граждан из жилых помещений, признанных непригодными для проживания | B175: 901 | C175: 0501 | D175: 0920123000 | E175: 000 | F175: 0 | G175: 0
A176: Бюджетные инвестиции | B176: 901 | C176: 0501 | D176: 0920123000 | E176: 410 | F176: 0 | G176: 0
A177: Капитальный ремонт муниципального жилого фонда | B177: 901 | C177: 0501 | D177: 0920223000 | E177: 000 | F177: 1423800 | G177: 1093 | H177: 0.07676639978
A178: Иные закупки товаров, работ и услуг для обеспечения государственных (муниципальных) нужд | B178: 901 | C178: 0501 | D178: 0920223000 | E178: 240 | F178: 1423800 | G178: 1093 | H178: 0.07676639978
A179: Коммунальное хозяйство | B179: 901 | C179: 0502 | D179: 0000000000 | E179: 000 | F179: 63865778.11 | G179: 9847158.83 | H179: 15.41852166
A180: Муниципальная программа МО Красноуфимский округ "Развитие и модернизация жилищно-коммунального хозяйства и дорожного хозяйства, повышение энергетической эффективности в МО Красноуфимский округ до 2020 года" | B180: 901 | C180: 0502 | D180: 0900000000 | E180: 000 | F180: 46259027 | G180: 710699.49 | H180: 1.536347684
A181: Подпрограмма "Комплексное развитие и модернизация системы коммунальной инфраструктуры МО Красноуфимский округ" | B181: 901 | C181: 0502 | D181: 0910000000 | E181: 000 | F181: 5750700 | G181: 0 | H181: 0
A182: Бюджетные инвестиции в объекты жилищно-коммунального хозяйства | B182: 901 | C182: 0502 | D182: 0910123000 | E182: 000 | F182: 3400000 | G182: 0 | H182: 0
A183: Субсидии юридическим лицам (кроме некоммерческих организаций), индивидуальным предпринимателям, физическим лицам - производителям товаров, работ, услуг | B183: 901 | C183: 0502 | D183: 0910123000 | E183: 810 | F183: 3400000 | G183: 0 | H183: 0
A184: Разработка проектной документации на объекты строительства и реконструкции коммунальной инфраструктуры | B184: 901 | C184: 0502 | D184: 0910223000 | E184: 000 | F184: 2350700 | G184: 0 | H184: 0
A185: Иные закупки товаров, работ и услуг для обеспечения государственных (муниципальных) нужд | B185: 901 | C185: 0502 | D185: 0910223000 | E185: 240 | F185: 2350700 | G185: 0 | H185: 0
A186: Подпрограмма "Энергосбережение и повышение энергетической эффективности МО Красноуфимский округ" | B186: 901 | C186: 0502 | D186: 0930000000 | E186: 000 | F186: 40508327 | G186: 710699.49 | H186: 1.754452831
A187: Модернизация систем и объектов коммунальной инфраструктуры, наружного освещения населенных пунктов | B187: 901 | C187: 0502 | D187: 0930123000 | E187: 000 | F187: 21118118 | G187: 99699.49 | H187: 0.4721040483
A188: Бюджетные инвестиции | B188: 901 | C188: 0502 | D188: 0930123000 | E188: 410 | F188: 21118118 | G188: 99699.49 | H188: 0.4721040483
A189: Модернизация систем и объектов коммунальной инфраструктуры, наружного освещения населенных пунктов за счет средств областного бюджета | B189: 901 | C189: 0502 | D189: 0930142Б00 | E189: 000 | F189: 14047500 | G189: 0 | H189: 0
A190: Бюджетные инвестиции | B190: 901 | C190: 0502 | D190: 0930142Б00 | E190: 410 | F190: 14047500 | G190: 0 | H190: 0
A191: Разработка проектной документации | B191: 901 | C191: 0502 | D191: 0930323000 | E191: 000 | F191: 4342709 | G191: 591000 | H191: 13.60901686
A192: Иные закупки товаров, работ и услуг для обеспечения государственных (муниципальных) нужд | B192: 901 | C192: 0502 | D192: 0930323000 | E192: 240 | F192: 4342709 | G192: 591000 | H192: 13.60901686
A193: Экспериза проектной документации сетей уличного освещения | B193: 901 | C193: 0502 | D193: 0930423000 | E193: 000 | F193: 1000000 | G193: 20000 | H193: 2
A194: Иные закупки товаров, работ и услуг для обеспечения государственных (муниципальных) нужд | B194: 901 | C194: 0502 | D194: 0930423000 | E194: 240 | F194: 1000000 | G194: 20000 | H194: 2
A195: Муниципальная программа МО Красноуфимский округ "Устойчивое развитие сельских территорий муниципального образования Красноуфимский округ до 2020 года" | B195: 901 | C195: 0502 | D195: 1100000000 | E195: 000 | F195: 17606751.11 | G195: 9136459.34 | H195: 51.89179584
A196: Подпрограмма "Развитие газификации МО Красноуфимский округ до 2020 года" | B196: 901 | C196: 0502 | D196: 1110000000 | E196: 000 | F196: 17606751.11 | G196: 9136459.34 | H196: 51.89179584
A197: Разработка схем газоснабжения | B197: 901 | C197: 0502 | D197: 1110123000 | E197: 000 | F197: 363632.74 | G197: 280639.8 | H197: 77.17671407
A198: Иные закупки товаров, работ и услуг для обеспечения государственных (муниципальных) нужд | B198: 901 | C198: 0502 | D198: 1110123000 | E198: 240 | F198: 363632.74 | G198: 280639.8 | H198: 77.17671407
A199: Проектно-изыскательские работы и экспертиза на распределительные газопроводы | B199: 901 | C199: 0502 | D199: 1110223000 | E199: 000 | F199: 3165182.62 | G199: 861064.16 | H199: 27.20424896
A200: Бюджетные инвестиции | B200: 901 | C200: 0502 | D200: 1110223000 | E200: 410 | F200: 3165182.62 | G200: 861064.16 | H200: =G200/F200*100 -> 27.20424896
A201: Строительство распределительных газопроводов | B201: 901 | C201: 0502 | D201: 1110323000 | E201: 000 | F201: 3224908 | G201: 2577165 | H201: 79.91437275
A202: Бюджетные инвестиции | B202: 901 | C202: 0502 | D202: 1110323000 | E202: 410 | F202: 3224908 | G202: 2577165 | H202: 79.91437275
... 406 more rows
